[Event "Titled Tuesday Blitz July 11 Late 2023"]
[White "Svane, Frederik"]
[Black "Maghsoodloo, Parham"]
[WhiteFideId "12923044"]
[BlackFideId "12539929"]
[WhiteElo "2808"]
[BlackElo "2971"]
[Result "1/2-1/2"]
[Round "9"]
[TimeControl "180+2"]
[Date "2023.07.11"]
[WhiteClock "0:00:10"]
[BlackClock "0:00:11"]
[Board "13"]

1. c4 {[%clk 0:02:59]}  a6 {[%clk 0:02:56]} 2. Nc3 {[%clk 0:02:53]}  e6 {[%clk 0:02:55]} 3. e4 {[%clk 0:02:53]}  c5 {[%clk 0:02:53]} 4. Nf3 {[%clk 0:02:53]}  d6 {[%clk 0:02:54]} 5. Be2 {[%clk 0:02:53]}  e5 {[%clk 0:02:53]} 6. O-O {[%clk 0:02:52]}  g6 {[%clk 0:02:53]} 7. a3 {[%clk 0:02:47]}  Nc6 {[%clk 0:02:52]} 8. Rb1 {[%clk 0:02:47]}  Bg7 {[%clk 0:02:49]} 9. b4 {[%clk 0:02:47]}  Nge7 {[%clk 0:02:48]} 10. d3 {[%clk 0:02:47]}  O-O {[%clk 0:02:48]} 11. Bg5 {[%clk 0:02:40]}  h6 {[%clk 0:02:46]} 12. Be3 {[%clk 0:02:36]}  b6 {[%clk 0:02:45]} 13. Qd2 {[%clk 0:02:34]}  Kh7 {[%clk 0:02:43]} 14. Ne1 {[%clk 0:02:32]}  f5 {[%clk 0:02:43]} 15. exf5 {[%clk 0:02:29]}  gxf5 {[%clk 0:02:42]} 16. f4 {[%clk 0:02:30]}  Nd4 {[%clk 0:02:38]} 17. Nf3 {[%clk 0:02:18]}  Ng6 {[%clk 0:02:28]} 18. Nd5 {[%clk 0:01:43]}  Be6 {[%clk 0:02:28]} 19. bxc5 {[%clk 0:01:43]}  bxc5 {[%clk 0:02:27]} 20. Rb7 {[%clk 0:01:33]}  Rf7 {[%clk 0:02:12]} 21. Rxf7 {[%clk 0:01:29]}  Bxf7 {[%clk 0:02:12]} 22. fxe5 {[%clk 0:01:30]}  dxe5 {[%clk 0:02:12]} 23. Bd1 {[%clk 0:00:40]}  Be6 {[%clk 0:01:57]} 24. Nxd4 {[%clk 0:00:31]}  cxd4 {[%clk 0:01:57]} 25. Bf2 {[%clk 0:00:31]}  Rb8 {[%clk 0:01:46]} 26. Bf3 {[%clk 0:00:21]}  Rb3 {[%clk 0:01:40]} 27. h3 {[%clk 0:00:19]}  a5 {[%clk 0:01:35]} 28. a4 {[%clk 0:00:18]}  Ne7 {[%clk 0:01:17]} 29. Bh4 {[%clk 0:00:16]}  Bxd5 {[%clk 0:01:07]} 30. Bxd5 {[%clk 0:00:17]}  e4 {[%clk 0:01:03]} 31. dxe4 {[%clk 0:00:15]}  d3 {[%clk 0:01:00]} 32. exf5 {[%clk 0:00:14]}  Qb6+ {[%clk 0:01:00]} 33. Bf2 {[%clk 0:00:13]}  Bd4 {[%clk 0:00:51]} 34. Be4 {[%clk 0:00:13]}  Bxf2+ {[%clk 0:00:41]} 35. Rxf2 {[%clk 0:00:14]}  Qd4 {[%clk 0:00:41]} 36. Qf4 {[%clk 0:00:11]}  Qf6 {[%clk 0:00:19]} 37. Rd2 {[%clk 0:00:12]}  Ng8 {[%clk 0:00:13]} 38. Rxd3 {[%clk 0:00:09]}  Rxd3 {[%clk 0:00:14]} 39. Bxd3 {[%clk 0:00:10]}  Qb6+ {[%clk 0:00:10]} 40. Qf2 {[%clk 0:00:10]}  Qb3 {[%clk 0:00:08]} 41. f6+ {[%clk 0:00:07]}  Qxd3 {[%clk 0:00:08]} 42. f7 {[%clk 0:00:08]}  Qd1+ {[%clk 0:00:08]} 43. Kh2 {[%clk 0:00:09]}  Qd6+ {[%clk 0:00:08]} 44. g3 {[%clk 0:00:09]}  Nf6 {[%clk 0:00:08]} 45. c5 {[%clk 0:00:08]}  Qe7 {[%clk 0:00:08]} 46. c6 {[%clk 0:00:04]}  Kg7 {[%clk 0:00:09]} 47. Qc2 {[%clk 0:00:01]}  Qc7 {[%clk 0:00:06]} 48. Qc4 {[%clk 0:00:01]}  Nh7 {[%clk 0:00:04]} 49. Kg2 {[%clk 0:00:01]}  Nf8 {[%clk 0:00:05]} 50. h4 {[%clk 0:00:01]}  Kf6 {[%clk 0:00:05]} 51. Kh2 {[%clk 0:00:01]}  Kg7 {[%clk 0:00:03]} 52. Qg4+ {[%clk 0:00:02]}  Kxf7 {[%clk 0:00:03]} 53. Qf5+ {[%clk 0:00:02]}  Kg7 {[%clk 0:00:03]} 54. Qg4+ {[%clk 0:00:02]}  Kf6 {[%clk 0:00:04]} 55. Qd4+ {[%clk 0:00:02]}  Kf7 {[%clk 0:00:04]} 56. Qf2+ {[%clk 0:00:02]}  Kg8 {[%clk 0:00:03]} 57. Qc5 {[%clk 0:00:01]}  Ne6 {[%clk 0:00:04]} 58. Qd5 {[%clk 0:00:02]}  Kf7 {[%clk 0:00:04]} 59. Qf5+ {[%clk 0:00:02]}  Ke7 {[%clk 0:00:04]} 60. Qh7+ {[%clk 0:00:03]}  Kd6 {[%clk 0:00:04]} 61. Qxh6 {[%clk 0:00:04]}  Qxc6 {[%clk 0:00:03]} 62. Qd2+ {[%clk 0:00:04]}  Qd5 {[%clk 0:00:04]} 63. Qxd5+ {[%clk 0:00:05]}  Kxd5 {[%clk 0:00:04]} 64. h5 {[%clk 0:00:05]}  Ke5 {[%clk 0:00:04]} 65. Kg2 {[%clk 0:00:05]}  Kf5 {[%clk 0:00:05]} 66. Kf3 {[%clk 0:00:05]}  Nc5 {[%clk 0:00:05]} 67. Ke3 {[%clk 0:00:04]}  Nxa4 {[%clk 0:00:05]} 68. g4+ {[%clk 0:00:05]}  Kg5 {[%clk 0:00:05]} 69. Kd4 {[%clk 0:00:06]}  Nb6 {[%clk 0:00:05]} 70. Kc5 {[%clk 0:00:06]}  a4 {[%clk 0:00:06]} 71. Kb4 {[%clk 0:00:06]}  Kh6 {[%clk 0:00:06]} 72. Ka3 {[%clk 0:00:07]}  Kg5 {[%clk 0:00:06]} 73. Kb4 {[%clk 0:00:07]}  Kf6 {[%clk 0:00:07]} 74. h6 {[%clk 0:00:07]}  Kg6 {[%clk 0:00:08]} 75. g5 {[%clk 0:00:08]}  Kh7 {[%clk 0:00:08]} 76. Ka3 {[%clk 0:00:08]}  Kg6 {[%clk 0:00:09]} 77. Kb4 {[%clk 0:00:09]}  Kh7 {[%clk 0:00:10]} 78. Ka3 {[%clk 0:00:10]}  Kg6 {[%clk 0:00:11]} 79. Kb4 {[%clk 0:00:10]} 1/2-1/2


[Site "https://www.chess.com"]

[Event "Titled Tuesday Blitz July 11 Late 2023"]
[White "Zemlyanskii, Ivan"]
[Black "Sviridov, Valery"]
[WhiteFideId "24249971"]
[BlackFideId "4120680"]
[WhiteElo "2806"]
[BlackElo "2962"]
[Result "1-0"]
[Round "9"]
[TimeControl "180+2"]
[Date "2023.07.11"]
[WhiteClock "0:01:45"]
[BlackClock "0:01:21"]
[Board "14"]

1. d4 {[%clk 0:03:00]}  Nf6 {[%clk 0:02:52]} 2. c4 {[%clk 0:03:00]}  b6 {[%clk 0:02:53]} 3. f3 {[%clk 0:02:57]}  Nc6 {[%clk 0:02:52]} 4. Nc3 {[%clk 0:02:57]}  e5 {[%clk 0:02:52]} 5. d5 {[%clk 0:02:58]}  Ne7 {[%clk 0:02:52]} 6. Qc2 {[%clk 0:02:58]}  Ng6 {[%clk 0:02:50]} 7. g4 {[%clk 0:02:58]}  h5 {[%clk 0:02:48]} 8. g5 {[%clk 0:02:49]}  Nh7 {[%clk 0:02:48]} 9. h4 {[%clk 0:02:48]}  Bc5 {[%clk 0:02:38]} 10. e3 {[%clk 0:02:43]}  d6 {[%clk 0:02:37]} 11. b4 {[%clk 0:02:39]}  Bxb4 {[%clk 0:02:19]} 12. Qa4+ {[%clk 0:02:39]}  Bd7 {[%clk 0:02:20]} 13. Qxb4 {[%clk 0:02:40]}  O-O {[%clk 0:02:21]} 14. Bd3 {[%clk 0:02:36]}  e4 {[%clk 0:02:14]} 15. Bxe4 {[%clk 0:02:32]}  Ne5 {[%clk 0:02:12]} 16. f4 {[%clk 0:02:26]}  Ng4 {[%clk 0:02:07]} 17. Qb1 {[%clk 0:02:25]}  f5 {[%clk 0:02:07]} 18. Bf3 {[%clk 0:02:18]}  Qe7 {[%clk 0:02:07]} 19. Qd3 {[%clk 0:02:09]}  Rae8 {[%clk 0:01:40]} 20. Nge2 {[%clk 0:02:09]}  a6 {[%clk 0:01:38]} 21. a4 {[%clk 0:02:06]}  a5 {[%clk 0:01:30]} 22. Nd4 {[%clk 0:01:52]}  Qf7 {[%clk 0:01:27]} 23. Ne6 {[%clk 0:01:45]}  Bxe6 {[%clk 0:01:21]} 24. dxe6 {[%clk 0:01:45]}  Re7 {[%clk 0:01:21]} 25. exf7+ {[%clk 0:01:45]} 1-0


[Site "https://www.chess.com"]

[Event "Titled Tuesday Blitz July 11 Late 2023"]
[White "Bartel, Mateusz"]
[Black "Makarian, Rudik"]
[WhiteFideId "1112635"]
[BlackFideId "44105681"]
[WhiteElo "2794"]
[BlackElo "2949"]
[Result "1-0"]
[Round "9"]
[TimeControl "180+2"]
[Date "2023.07.11"]
[WhiteClock "0:00:27"]
[BlackClock "0:00:01"]
[Board "15"]

1. e4 {[%clk 0:03:00]}  c5 {[%clk 0:02:54]} 2. Nf3 {[%clk 0:02:57]}  Nc6 {[%clk 0:02:54]} 3. Bc4 {[%clk 0:02:53]}  e6 {[%clk 0:02:54]} 4. O-O {[%clk 0:02:53]}  Nf6 {[%clk 0:02:47]} 5. d3 {[%clk 0:02:47]}  d5 {[%clk 0:02:39]} 6. exd5 {[%clk 0:02:47]}  exd5 {[%clk 0:02:32]} 7. Bb5 {[%clk 0:02:43]}  Be7 {[%clk 0:02:25]} 8. Bxc6+ {[%clk 0:02:38]}  bxc6 {[%clk 0:02:26]} 9. h3 {[%clk 0:02:39]}  O-O {[%clk 0:02:26]} 10. Nbd2 {[%clk 0:02:31]}  Bd6 {[%clk 0:02:23]} 11. Re1 {[%clk 0:02:28]}  h6 {[%clk 0:02:20]} 12. Nf1 {[%clk 0:02:27]}  a5 {[%clk 0:02:18]} 13. a4 {[%clk 0:02:27]}  Qc7 {[%clk 0:02:17]} 14. b3 {[%clk 0:02:22]}  Be6 {[%clk 0:01:51]} 15. Bb2 {[%clk 0:02:22]}  d4 {[%clk 0:01:51]} 16. N1d2 {[%clk 0:02:21]}  Bd5 {[%clk 0:01:51]} 17. Nc4 {[%clk 0:02:15]}  Bxc4 {[%clk 0:01:51]} 18. dxc4 {[%clk 0:02:11]}  Rfe8 {[%clk 0:01:46]} 19. Rxe8+ {[%clk 0:01:53]}  Rxe8 {[%clk 0:01:46]} 20. Qf1 {[%clk 0:01:54]}  Ne4 {[%clk 0:01:44]} 21. Re1 {[%clk 0:01:53]}  f5 {[%clk 0:01:43]} 22. Qd3 {[%clk 0:01:52]}  Qd7 {[%clk 0:01:38]} 23. Bc1 {[%clk 0:01:51]}  Bc7 {[%clk 0:01:29]} 24. Kf1 {[%clk 0:01:44]}  Kh7 {[%clk 0:01:18]} 25. Nd2 {[%clk 0:01:38]}  Nxd2+ {[%clk 0:00:56]} 26. Bxd2 {[%clk 0:01:35]}  Rxe1+ {[%clk 0:00:56]} 27. Bxe1 {[%clk 0:01:35]}  Qe6 {[%clk 0:00:56]} 28. Qe2 {[%clk 0:01:30]}  Qe4 {[%clk 0:00:48]} 29. f3 {[%clk 0:01:19]}  Qxe2+ {[%clk 0:00:29]} 30. Kxe2 {[%clk 0:01:19]}  Kg6 {[%clk 0:00:28]} 31. Bd2 {[%clk 0:01:15]}  Kf6 {[%clk 0:00:28]} 32. g4 {[%clk 0:01:15]}  fxg4 {[%clk 0:00:20]} 33. fxg4 {[%clk 0:01:12]}  Ke6 {[%clk 0:00:18]} 34. Kf3 {[%clk 0:01:11]}  g5 {[%clk 0:00:15]} 35. Ke4 {[%clk 0:01:11]}  Kf6 {[%clk 0:00:11]} 36. c3 {[%clk 0:01:05]}  dxc3 {[%clk 0:00:05]} 37. Bxc3+ {[%clk 0:01:05]}  Ke6 {[%clk 0:00:04]} 38. Be1 {[%clk 0:00:55]}  Be5 {[%clk 0:00:03]} 39. Bf2 {[%clk 0:00:54]}  Bd6 {[%clk 0:00:04]} 40. Be3 {[%clk 0:00:54]}  Be7 {[%clk 0:00:03]} 41. Bc1 {[%clk 0:00:47]}  Bd8 {[%clk 0:00:03]} 42. Bb2 {[%clk 0:00:47]}  Kf7 {[%clk 0:00:02]} 43. Kf5 {[%clk 0:00:46]}  Be7 {[%clk 0:00:02]} 44. Be5 {[%clk 0:00:45]}  Bd8 {[%clk 0:00:02]} 45. Bd6 {[%clk 0:00:46]}  Bb6 {[%clk 0:00:02]} 46. Ke5 {[%clk 0:00:44]}  Kg6 {[%clk 0:00:01]} 47. Ke6 {[%clk 0:00:44]}  Bd8 {[%clk 0:00:01]} 48. Bxc5 {[%clk 0:00:44]}  h5 {[%clk 0:00:01]} 49. Kd7 {[%clk 0:00:42]}  Bf6 {[%clk 0:00:01]} 50. Kxc6 {[%clk 0:00:41]}  Bc3 {[%clk 0:00:01]} 51. Kd5 {[%clk 0:00:36]}  hxg4 {[%clk 0:00:01]} 52. hxg4 {[%clk 0:00:36]}  Be1 {[%clk 0:00:02]} 53. Bd4 {[%clk 0:00:35]}  Kf7 {[%clk 0:00:02]} 54. c5 {[%clk 0:00:34]}  Ke7 {[%clk 0:00:02]} 55. c6 {[%clk 0:00:34]}  Kd8 {[%clk 0:00:03]} 56. Bf6+ {[%clk 0:00:34]}  Kc7 {[%clk 0:00:03]} 57. Bxg5 {[%clk 0:00:35]}  Kb6 {[%clk 0:00:04]} 58. Be3+ {[%clk 0:00:35]}  Ka6 {[%clk 0:00:03]} 59. Bf4 {[%clk 0:00:31]}  Bc3 {[%clk 0:00:03]} 60. g5 {[%clk 0:00:31]}  Be1 {[%clk 0:00:02]} 61. g6 {[%clk 0:00:31]}  Bc3 {[%clk 0:00:01]} 62. Be5 {[%clk 0:00:32]}  Bb4 {[%clk 0:00:01]} 63. g7 {[%clk 0:00:31]}  Ka7 {[%clk 0:00:01]} 64. g8=Q {[%clk 0:00:29]}  Bf8 {[%clk 0:00:01]} 65. Qxf8 {[%clk 0:00:27]} 1-0


[Site "https://www.chess.com"]

[Event "Titled Tuesday Blitz July 11 Late 2023"]
[White "Leitao, Rafael"]
[Black "Keymer, Vincent"]
[WhiteFideId "2101246"]
[BlackFideId "12940690"]
[WhiteElo "2759"]
[BlackElo "2931"]
[Result "1-0"]
[Round "9"]
[TimeControl "180+2"]
[Date "2023.07.11"]
[WhiteClock "0:00:37"]
[BlackClock "0:00:08"]
[Board "16"]

1. c4 {[%clk 0:03:00]}  Nf6 {[%clk 0:02:59]} 2. Nc3 {[%clk 0:03:00]}  e5 {[%clk 0:02:59]} 3. Nf3 {[%clk 0:03:00]}  Nc6 {[%clk 0:03:00]} 4. e4 {[%clk 0:03:00]}  Bb4 {[%clk 0:02:59]} 5. d3 {[%clk 0:03:00]}  d6 {[%clk 0:02:59]} 6. a3 {[%clk 0:02:58]}  Bxc3+ {[%clk 0:02:59]} 7. bxc3 {[%clk 0:02:58]}  Nd7 {[%clk 0:02:57]} 8. g3 {[%clk 0:02:50]}  Nc5 {[%clk 0:02:56]} 9. Nh4 {[%clk 0:02:32]}  Qf6 {[%clk 0:02:51]} 10. Bg2 {[%clk 0:02:13]}  g5 {[%clk 0:02:43]} 11. Nf3 {[%clk 0:02:01]}  h6 {[%clk 0:02:36]} 12. O-O {[%clk 0:01:53]}  Bg4 {[%clk 0:02:18]} 13. h3 {[%clk 0:01:47]}  Bd7 {[%clk 0:02:17]} 14. d4 {[%clk 0:01:40]}  Nxe4 {[%clk 0:02:10]} 15. Nxe5 {[%clk 0:01:25]}  Nxc3 {[%clk 0:01:51]} 16. Nxd7 {[%clk 0:01:24]}  Kxd7 {[%clk 0:01:51]} 17. Qg4+ {[%clk 0:01:24]}  Kd8 {[%clk 0:01:36]} 18. Bd2 {[%clk 0:01:02]}  Qxd4 {[%clk 0:01:09]} 19. Bxc3 {[%clk 0:00:51]}  Qxc3 {[%clk 0:01:09]} 20. Rab1 {[%clk 0:00:50]}  Rc8 {[%clk 0:00:19]} 21. Rfd1 {[%clk 0:00:42]}  Ne5 {[%clk 0:00:15]} 22. Qf5 {[%clk 0:00:42]}  Qxc4 {[%clk 0:00:15]} 23. Qxe5 {[%clk 0:00:40]}  Re8 {[%clk 0:00:13]} 24. Qf6+ {[%clk 0:00:39]}  Re7 {[%clk 0:00:08]} 25. Re1 {[%clk 0:00:37]} 1-0


[Site "https://www.chess.com"]

[Event "Titled Tuesday Blitz July 11 Late 2023"]
[White "Durarbayli, Vasif"]
[Black "Todorovic, Bojan"]
[WhiteFideId "13402935"]
[BlackFideId "917087"]
[WhiteElo "2919"]
[BlackElo "2432"]
[Result "1-0"]
[Round "9"]
[TimeControl "180+2"]
[Date "2023.07.11"]
[WhiteClock "0:00:16"]
[BlackClock "0:00:04"]
[Board "19"]

1. e4 {[%clk 0:03:00]}  g6 {[%clk 0:02:59]} 2. d4 {[%clk 0:03:00]}  Bg7 {[%clk 0:02:59]} 3. Nc3 {[%clk 0:03:01]}  d6 {[%clk 0:02:59]} 4. Be3 {[%clk 0:03:01]}  a6 {[%clk 0:02:59]} 5. g4 {[%clk 0:03:02]}  b5 {[%clk 0:02:56]} 6. Bg2 {[%clk 0:03:01]}  Bb7 {[%clk 0:02:56]} 7. h4 {[%clk 0:03:01]}  Nf6 {[%clk 0:02:51]} 8. g5 {[%clk 0:02:44]}  Nh5 {[%clk 0:02:51]} 9. Bf3 {[%clk 0:02:39]}  Nd7 {[%clk 0:02:46]} 10. Bxh5 {[%clk 0:02:25]}  gxh5 {[%clk 0:02:46]} 11. Qxh5 {[%clk 0:02:25]}  b4 {[%clk 0:02:42]} 12. Nd5 {[%clk 0:02:26]}  e6 {[%clk 0:02:39]} 13. Nf4 {[%clk 0:02:24]}  O-O {[%clk 0:02:29]} 14. f3 {[%clk 0:02:14]}  e5 {[%clk 0:02:24]} 15. dxe5 {[%clk 0:02:03]}  Nxe5 {[%clk 0:02:24]} 16. Nge2 {[%clk 0:01:46]}  f5 {[%clk 0:01:41]} 17. Ne6 {[%clk 0:01:31]}  Qe7 {[%clk 0:01:42]} 18. Nxg7 {[%clk 0:01:31]}  Qxg7 {[%clk 0:01:39]} 19. O-O-O {[%clk 0:01:14]}  fxe4 {[%clk 0:01:14]} 20. f4 {[%clk 0:01:11]}  Nf3 {[%clk 0:01:13]} 21. Nd4 {[%clk 0:00:58]}  Rae8 {[%clk 0:01:08]} 22. f5 {[%clk 0:00:52]}  c5 {[%clk 0:00:22]} 23. Ne6 {[%clk 0:00:43]}  Rxe6 {[%clk 0:00:22]} 24. fxe6 {[%clk 0:00:43]}  d5 {[%clk 0:00:22]} 25. Bxc5 {[%clk 0:00:37]}  Rc8 {[%clk 0:00:22]} 26. e7 {[%clk 0:00:20]}  Qf7 {[%clk 0:00:21]} 27. Qxf7+ {[%clk 0:00:18]}  Kxf7 {[%clk 0:00:22]} 28. Bxb4 {[%clk 0:00:19]}  d4 {[%clk 0:00:20]} 29. h5 {[%clk 0:00:17]}  d3 {[%clk 0:00:16]} 30. g6+ {[%clk 0:00:16]}  hxg6 {[%clk 0:00:11]} 31. hxg6+ {[%clk 0:00:17]}  Kxg6 {[%clk 0:00:10]} 32. Bc3 {[%clk 0:00:15]}  dxc2 {[%clk 0:00:06]} 33. Rd8 {[%clk 0:00:16]}  Kf7 {[%clk 0:00:04]} 34. e8=Q# {[%clk 0:00:16]} 1-0


[Site "https://www.chess.com"]

[Event "Titled Tuesday Blitz July 11 Late 2023"]
[White "Duda, Jan-Krzysztof"]
[Black "Tristan, Leonardo"]
[WhiteFideId "1170546"]
[BlackFideId "113816"]
[WhiteElo "3028"]
[BlackElo "2780"]
[Result "1-0"]
[Round "9"]
[TimeControl "180+2"]
[Date "2023.07.11"]
[WhiteClock "0:00:11"]
[BlackClock "0:00:02"]
[Board "20"]

1. d4 {[%clk 0:03:00]}  d5 {[%clk 0:03:00]} 2. c4 {[%clk 0:03:00]}  e6 {[%clk 0:03:00]} 3. Nc3 {[%clk 0:02:59]}  a6 {[%clk 0:03:00]} 4. c5 {[%clk 0:02:50]}  e5 {[%clk 0:03:00]} 5. dxe5 {[%clk 0:02:48]}  d4 {[%clk 0:03:00]} 6. Na4 {[%clk 0:02:37]}  Nc6 {[%clk 0:02:57]} 7. e3 {[%clk 0:02:34]}  Bf5 {[%clk 0:02:46]} 8. Nf3 {[%clk 0:02:22]}  d3 {[%clk 0:02:09]} 9. Qb3 {[%clk 0:02:21]}  b5 {[%clk 0:01:58]} 10. cxb6 {[%clk 0:02:19]}  cxb6 {[%clk 0:01:46]} 11. Qxb6 {[%clk 0:02:07]}  Nb4 {[%clk 0:01:01]} 12. Nd4 {[%clk 0:02:03]}  Nc2+ {[%clk 0:00:56]} 13. Nxc2 {[%clk 0:02:01]}  dxc2 {[%clk 0:00:57]} 14. Qc6+ {[%clk 0:01:58]}  Ke7 {[%clk 0:00:40]} 15. Bd2 {[%clk 0:01:56]}  f6 {[%clk 0:00:32]} 16. g4 {[%clk 0:01:36]}  Bxg4 {[%clk 0:00:10]} 17. Qxc2 {[%clk 0:01:32]}  Rc8 {[%clk 0:00:06]} 18. Qe4 {[%clk 0:01:24]}  Be6 {[%clk 0:00:07]} 19. Bxa6 {[%clk 0:01:20]}  Ra8 {[%clk 0:00:06]} 20. Qb7+ {[%clk 0:01:18]}  Bd7 {[%clk 0:00:03]} 21. Bb4+ {[%clk 0:01:14]}  Kf7 {[%clk 0:00:03]} 22. e6+ {[%clk 0:01:00]}  Kg6 {[%clk 0:00:01]} 23. Bd3+ {[%clk 0:00:51]}  Kh6 {[%clk 0:00:01]} 24. Bxf8 {[%clk 0:00:45]}  Rxa4 {[%clk 0:00:01]} 25. Bxg7+ {[%clk 0:00:41]}  Kxg7 {[%clk 0:00:01]} 26. Rg1+ {[%clk 0:00:41]}  Kh6 {[%clk 0:00:01]} 27. exd7 {[%clk 0:00:41]}  Ne7 {[%clk 0:00:01]} 28. Qf3 {[%clk 0:00:38]}  Ng6 {[%clk 0:00:01]} 29. Bxg6 {[%clk 0:00:17]}  Qa5+ {[%clk 0:00:01]} 30. Kf1 {[%clk 0:00:16]}  hxg6 {[%clk 0:00:02]} 31. Qxf6 {[%clk 0:00:11]}  Qb5+ {[%clk 0:00:03]} 32. Ke1 {[%clk 0:00:12]}  Qa5+ {[%clk 0:00:03]} 33. Qc3 {[%clk 0:00:13]}  Qb5 {[%clk 0:00:02]} 34. Qxh8# {[%clk 0:00:11]} 1-0


[Site "https://www.chess.com"]

[Event "Titled Tuesday Blitz July 11 Late 2023"]
[White "Antipov, Mikhail Al."]
[Black "Seletsky, Grigory"]
[WhiteFideId "4107012"]
[BlackFideId "14112191"]
[WhiteElo "2911"]
[BlackElo "2457"]
[Result "1-0"]
[Round "9"]
[TimeControl "180+2"]
[Date "2023.07.11"]
[WhiteClock "0:01:16"]
[BlackClock "0:00:05"]
[Board "23"]

1. e4 {[%clk 0:03:00]}  c5 {[%clk 0:02:59]} 2. Nf3 {[%clk 0:03:01]}  d6 {[%clk 0:02:59]} 3. d4 {[%clk 0:03:01]}  cxd4 {[%clk 0:02:59]} 4. Nxd4 {[%clk 0:03:02]}  Nf6 {[%clk 0:02:59]} 5. Nc3 {[%clk 0:03:02]}  a6 {[%clk 0:03:00]} 6. Rg1 {[%clk 0:03:03]}  e5 {[%clk 0:02:59]} 7. Nb3 {[%clk 0:03:03]}  h5 {[%clk 0:02:57]} 8. Be3 {[%clk 0:03:02]}  Be6 {[%clk 0:02:53]} 9. h3 {[%clk 0:03:01]}  Nbd7 {[%clk 0:02:53]} 10. g4 {[%clk 0:02:54]}  hxg4 {[%clk 0:02:52]} 11. hxg4 {[%clk 0:02:55]}  Rh4 {[%clk 0:02:44]} 12. f3 {[%clk 0:02:52]}  Rc8 {[%clk 0:02:37]} 13. Qd2 {[%clk 0:02:52]}  Nb6 {[%clk 0:02:31]} 14. g5 {[%clk 0:02:50]}  Nfd7 {[%clk 0:02:25]} 15. O-O-O {[%clk 0:02:49]}  g6 {[%clk 0:02:23]} 16. Kb1 {[%clk 0:02:39]}  Qc7 {[%clk 0:02:13]} 17. Be2 {[%clk 0:02:25]}  Nc4 {[%clk 0:02:09]} 18. Bxc4 {[%clk 0:02:25]}  Qxc4 {[%clk 0:02:10]} 19. Rh1 {[%clk 0:02:18]}  Rxh1 {[%clk 0:02:08]} 20. Rxh1 {[%clk 0:02:19]}  b5 {[%clk 0:02:03]} 21. Na5 {[%clk 0:02:04]}  Qc7 {[%clk 0:01:33]} 22. Nd5 {[%clk 0:02:02]}  Bxd5 {[%clk 0:01:33]} 23. exd5 {[%clk 0:02:03]}  Nb8 {[%clk 0:01:31]} 24. Rh8 {[%clk 0:01:56]}  b4 {[%clk 0:01:09]} 25. Nb3 {[%clk 0:01:44]}  a5 {[%clk 0:01:08]} 26. Qd3 {[%clk 0:01:44]}  a4 {[%clk 0:00:57]} 27. Nd2 {[%clk 0:01:43]}  Nd7 {[%clk 0:00:55]} 28. Ne4 {[%clk 0:01:43]}  Ke7 {[%clk 0:00:51]} 29. Rh7 {[%clk 0:01:41]}  Qb7 {[%clk 0:00:31]} 30. b3 {[%clk 0:01:32]}  a3 {[%clk 0:00:30]} 31. f4 {[%clk 0:01:30]}  exf4 {[%clk 0:00:17]} 32. Bxf4 {[%clk 0:01:31]}  Ne5 {[%clk 0:00:16]} 33. Bxe5 {[%clk 0:01:29]}  dxe5 {[%clk 0:00:16]} 34. d6+ {[%clk 0:01:29]}  Ke6 {[%clk 0:00:13]} 35. d7 {[%clk 0:01:17]}  Qxd7 {[%clk 0:00:12]} 36. Qh3+ {[%clk 0:01:16]}  f5 {[%clk 0:00:05]} 37. gxf6+ {[%clk 0:01:16]} 1-0


[Site "https://www.chess.com"]

[Event "Titled Tuesday Blitz July 11 Late 2023"]
[White "Zhigalko, Sergei"]
[Black "Hajiyev, Kanan"]
[WhiteFideId "13502956"]
[BlackFideId "13404148"]
[WhiteElo "2882"]
[BlackElo "2553"]
[Result "1-0"]
[Round "9"]
[TimeControl "180+2"]
[Date "2023.07.11"]
[WhiteClock "0:00:48"]
[BlackClock "0:00:00"]
[Board "24"]

1. e4 {[%clk 0:03:00]}  c6 {[%clk 0:02:40]} 2. d4 {[%clk 0:03:00]}  d5 {[%clk 0:02:41]} 3. e5 {[%clk 0:03:01]}  a6 {[%clk 0:02:40]} 4. Nf3 {[%clk 0:03:01]}  Bg4 {[%clk 0:02:40]} 5. h3 {[%clk 0:02:53]}  Bxf3 {[%clk 0:02:38]} 6. Qxf3 {[%clk 0:02:54]}  e6 {[%clk 0:02:39]} 7. Bd3 {[%clk 0:02:53]}  c5 {[%clk 0:02:40]} 8. dxc5 {[%clk 0:02:54]}  Bxc5 {[%clk 0:02:39]} 9. Qg3 {[%clk 0:02:49]}  g6 {[%clk 0:02:34]} 10. O-O {[%clk 0:02:49]}  Nc6 {[%clk 0:02:34]} 11. Re1 {[%clk 0:02:43]}  Qc7 {[%clk 0:01:46]} 12. c3 {[%clk 0:02:19]}  Nge7 {[%clk 0:01:34]} 13. Bg5 {[%clk 0:02:15]}  O-O-O {[%clk 0:01:23]} 14. Nd2 {[%clk 0:02:13]}  Rdf8 {[%clk 0:01:04]} 15. Bf6 {[%clk 0:01:59]}  Rhg8 {[%clk 0:01:02]} 16. b4 {[%clk 0:01:59]}  Ba7 {[%clk 0:01:02]} 17. a4 {[%clk 0:01:55]}  Nf5 {[%clk 0:00:57]} 18. Qf3 {[%clk 0:01:55]}  d4 {[%clk 0:00:12]} 19. b5 {[%clk 0:01:00]}  dxc3 {[%clk 0:00:11]} 20. bxc6 {[%clk 0:01:01]}  cxd2 {[%clk 0:00:12]} 21. Red1 {[%clk 0:01:01]}  Qxc6 {[%clk 0:00:11]} 22. Be4 {[%clk 0:01:02]}  Qc7 {[%clk 0:00:04]} 23. Rab1 {[%clk 0:00:48]}  Nd4 {[%clk 0:00:02]} 24. Bxb7+ {[%clk 0:00:48]}  Kd7 {[%clk 0:00:00]} 25. Rxd2 {[%clk 0:00:48]} 1-0


[Site "https://www.chess.com"]